bitfinex/quotes_BTCUSD_20250522
["timestamp","ask_amount","ask_price","bid_price","bid_amount"]
[1747898001473,0.00151008,110590.0,110580.0,1.62245913]
[1747898001723,0.00251008,110590.0,110580.0,1.62445913]
[1747898001900,0.00151008,110590.0,110580.0,1.62245913]
[1747898002105,0.00151008,110590.0,110580.0,1.62045913]
[1747898002307,0.00351008,110590.0,110580.0,1.62445913]
[1747898004535,0.00351008,110590.0,110580.0,1.8881539]
[1747898005614,0.00351008,110590.0,110580.0,1.91354107]
[1747898010067,0.00351008,110590.0,110580.0,1.6498463]
[1747898010351,0.00351008,110590.0,110580.0,1.91354107]
[1747898011270,0.00351008,110590.0,110580.0,2.30398107]
[1747898012787,0.00351008,110590.0,110580.0,2.57514107]
[1747898013975,0.00351008,110590.0,110580.0,2.57518107]
[1747898014396,0.24083623,110610.0,110600.0,0.54795559]
[1747898014546,0.27332849,110610.0,110600.0,4.75815113]
[1747898014945,0.27332849,110610.0,110600.0,5.15815113]
[1747898015405,0.25524785,110610.0,110600.0,4.63076159]
[1747898015547,0.27332849,110610.0,110600.0,4.99489813]
[1747898015938,0.2833691,110610.0,110600.0,4.95076122]
[1747898016162,0.27432833,110610.0,110600.0,4.93771223]
[1747898016559,0.28536885,110610.0,110600.0,4.8948023]
[1747898016857,0.29440954,110610.0,110600.0,4.8948023]
[1747898017075,0.28536885,110610.0,110600.0,4.9038434]
[1747898018152,0.28536885,110610.0,110600.0,4.91288441]
[1747898018624,0.28536885,110610.0,110600.0,4.92182398]
[1747898018849,0.28536885,110610.0,110600.0,5.19294398]
[1747898019265,0.27632833,110610.0,110600.0,5.19294398]
[1747898019418,0.28536877,110610.0,110600.0,5.19294398]
[1747898019758,0.09551286,110610.0,110600.0,5.19294398]
[1747898020173,0.28536877,110610.0,110600.0,5.19294398]
[1747898020366,0.1045533,110610.0,110600.0,5.19294398]
[1747898020580,0.10455322,110610.0,110600.0,5.19294398]
[1747898020829,0.06839226,110610.0,110600.0,5.19294398]
[1747898021035,0.18987807,110650.0,110630.0,0.34903881]
[1747898021236,0.00903766,110640.0,110630.0,0.81900504]
[1747898021456,0.19891678,110650.0,110640.0,0.91607857]
[1747898021641,0.20795428,110650.0,110640.0,0.91607873]
[1747898021854,9.224e-05,110650.0,110640.0,1.32511648]
[1747898022070,9.224e-05,110650.0,110640.0,2.55786048]
[1747898022299,9.224e-05,110650.0,110640.0,3.09440059]
[1747898022517,9.224e-05,110650.0,110640.0,3.18394615]
[1747898022937,9.224e-05,110650.0,110640.0,3.20935414]
[1747898023141,9.224e-05,110650.0,110640.0,3.23965414]
[1747898023552,9.224e-05,110650.0,110640.0,3.24165414]
[1747898023754,9.224e-05,110650.0,110640.0,3.21135414]
[1747898024009,9.224e-05,110650.0,110640.0,3.17180357]
[1747898024683,0.00912901,110650.0,110640.0,3.17180357]
[1747898024865,9.224e-05,110650.0,110640.0,3.17180357]
[1747898026085,0.00912901,110650.0,110640.0,3.17180357]
[1747898026323,9.224e-05,110650.0,110640.0,3.17180357]
[1747898027649,0.00912901,110650.0,110640.0,3.17180357]
[1747898027869,9.224e-05,110650.0,110640.0,3.17180357]
[1747898028047,0.00912901,110650.0,110640.0,2.14209857]
[1747898028217,0.01816594,110650.0,110640.0,2.38773058]
[1747898028862,0.00912901,110650.0,110640.0,2.36876743]
[1747898029065,0.01816594,110650.0,110640.0,2.38684382]
[1747898029239,0.01816586,110650.0,110640.0,2.38684382]
[1747898029638,0.02720287,110650.0,110640.0,2.38684382]
[1747898029841,0.01816586,110650.0,110640.0,2.38684382]
[1747898030942,0.02720287,110650.0,110640.0,2.38684382]
[1747898031502,0.02720287,110650.0,110640.0,2.39574434]
[1747898031682,0.00912901,110650.0,110640.0,2.39574434]
[1747898031938,9.224e-05,110650.0,110640.0,2.39574434]
[1747898032143,9.224e-05,110650.0,110640.0,2.45974434]
[1747898032345,9.224e-05,110650.0,110640.0,1.82966434]
[1747898032554,9.224e-05,110650.0,110640.0,2.45974434]
[1747898033379,9.224e-05,110650.0,110640.0,2.48512565]
[1747898035413,9.224e-05,110650.0,110640.0,2.48508565]
[1747898035618,9.224e-05,110650.0,110640.0,2.45970434]
[1747898038952,9.224e-05,110650.0,110640.0,2.48507372]
[1747898043150,9.224e-05,110650.0,110640.0,1.85503372]
[1747898043359,9.224e-05,110650.0,110640.0,2.48279372]
[1747898043818,0.01,110680.0,110670.0,0.55685977]
[1747898043996,0.01,110680.0,110670.0,2.88112854]
[1747898044549,0.01,110680.0,110670.0,3.66656887]
[1747898044726,0.01,110680.0,110670.0,3.16454475]
[1747898045024,0.01,110680.0,110670.0,3.42823952]
[1747898045434,0.01,110680.0,110670.0,3.72423429]
[1747898045667,0.011,110680.0,110670.0,3.72423429]
[1747898046043,0.014,110680.0,110670.0,3.72423429]
[1747898046244,0.013,110680.0,110670.0,3.72423429]
[1747898046603,0.01,110680.0,110670.0,3.72623429]
[1747898046810,0.01,110680.0,110670.0,3.72723429]
[1747898048257,0.01,110680.0,110670.0,3.19984475]
[1747898048458,0.01,110680.0,110670.0,3.72723429]
[1747898049229,0.01,110680.0,110670.0,2.50375329]
[1747898049614,0.01,110680.0,110670.0,2.64840752]
[1747898050129,0.01,110680.0,110670.0,2.71350752]
[1747898050329,0.01,110680.0,110670.0,2.97720229]
[1747898050765,0.24625501,110710.0,110700.0,0.09839195]
[1747898050962,0.19019414,110710.0,110700.0,1.70493283]
[1747898051219,0.19019414,110710.0,110700.0,1.71396584]
[1747898051417,0.19019414,110710.0,110700.0,2.37076184]
[1747898051620,0.19019414,110710.0,110700.0,2.29659084]
[1747898051822,0.19019414,110710.0,110700.0,2.12806307]
[1747898052031,0.19922625,110710.0,110700.0,2.13709608]
[1747898052190,0.24155853,110710.0,110700.0,1.96596307]
[1747898052394,0.28075853,110710.0,110700.0,1.96696307]
[1747898052989,0.28979105,110710.0,110700.0,1.88730898]
[1747898053193,0.28979097,110710.0,110700.0,1.88726898]
[1747898053859,0.28979097,110710.0,110700.0,1.77052319]
[1747898054066,0.28979097,110710.0,110700.0,1.960225]
[1747898054486,0.28979097,110710.0,110700.0,1.331573]
[1747898054691,0.27172683,110710.0,110700.0,0.741]
[1747898055096,0.36127239,110710.0,110700.0,0.001]
[1747898055298,0.44045839,110710.0,110700.0,0.001]
[1747898055502,0.36127239,110710.0,110700.0,0.001]
[1747898057792,0.36127239,110710.0,110700.0,0.26469477]
[1747898058195,0.63219239,110710.0,110700.0,0.26469477]
[1747898058401,0.36127239,110710.0,110700.0,0.26469477]
[1747898058682,0.27172683,110710.0,110700.0,0.26473477]
[1747898059092,0.27172674,110710.0,110700.0,0.66473477]
[1747898059310,0.28075918,110710.0,110700.0,0.66473477]
[1747898059815,0.20522609,110710.0,110700.0,0.85443658]
[1747898059978,0.22329097,110710.0,110700.0,0.84540324]
[1747898060143,0.22329097,110710.0,110700.0,0.67376819]
[1747898060351,0.23232357,110710.0,110700.0,0.67376819]
[1747898060551,0.19619398,110710.0,110700.0,0.86347]
[1747898060745,0.22329081,110710.0,110700.0,0.87250326]
[1747898060950,0.22329081,110710.0,110700.0,0.85443666]
[1747898061146,0.23232341,110710.0,110700.0,0.67376819]
[1747898061591,0.22329081,110710.0,110700.0,0.85443666]
[1747898061791,0.21425829,110710.0,110700.0,0.86346983]
[1747898061999,0.22329081,110710.0,110700.0,0.86346992]
[1747898062200,0.22329073,110710.0,110700.0,0.87250326]
[1747898062561,0.18716211,110710.0,110700.0,4.30517949]
[1747898062733,0.21425837,110710.0,110700.0,4.56887426]
[1747898062963,0.01554183,110710.0,110700.0,4.550808]
[1747898063212,0.19619414,110710.0,110700.0,4.59887394]
[1747898063383,0.20122609,110710.0,110700.0,4.59787402]
[1747898063687,0.19922601,110710.0,110700.0,4.59787402]
[1747898063832,0.2122582,110710.0,110700.0,4.2392341]
[1747898064033,0.20322674,110710.0,110700.0,4.51310124]
[1747898064259,0.23342625,110710.0,110700.0,4.52213458]
[1747898064464,0.21225869,110710.0,110700.0,4.52213458]
[1747898064877,0.19419406,110710.0,110700.0,4.53116784]
[1747898065124,0.21225828,110710.0,110700.0,4.57953378]
[1747898065342,0.19419406,110710.0,110700.0,4.57953378]
[1747898065561,0.00450996,110710.0,110700.0,4.57953378]
[1747898065777,0.00450996,110710.0,110700.0,4.61113378]
[1747898066004,0.19419414,110710.0,110700.0,4.61113378]
[1747898066148,0.20322617,110710.0,110700.0,4.61113378]
[1747898066359,0.20322617,110710.0,110700.0,4.57953378]
[1747898066570,0.21225845,110710.0,110700.0,4.57050085]
[1747898066777,0.21225845,110710.0,110700.0,4.53116784]
[1747898066989,0.21225943,110710.0,110700.0,4.33243277]
[1747898067237,0.27335943,110710.0,110700.0,4.33243277]
[1747898067447,0.27335943,110710.0,110700.0,4.34146619]
[1747898067660,0.27335943,110710.0,110700.0,4.33243277]
[1747898067875,0.27335943,110710.0,110700.0,4.34146611]
[1747898068086,0.53520683,110710.0,110700.0,0.74004]
[1747898068320,0.53520683,110710.0,110700.0,0.34004]
[1747898068522,0.50470683,110710.0,110700.0,3.93243277]
[1747898068934,0.50470683,110710.0,110700.0,4.1221345]
[1747898068935,0.20322642,110710.0,110700.0,4.1221345]
[1747898069138,0.01354191,110710.0,110700.0,4.14020044]
[1747898069572,0.20322625,110710.0,110700.0,4.53096044]
[1747898069800,0.21225861,110710.0,110700.0,4.53096052]
[1747898070420,0.21225861,110710.0,110700.0,4.4987606]
[1747898070612,0.21225861,110710.0,110700.0,4.50779353]
[1747898070829,0.21225861,110710.0,110700.0,4.4987606]
[1747898071027,0.22129105,110710.0,110700.0,2.54865024]
[1747898071229,0.21225967,110710.0,110700.0,1.76128777]
[1747898071448,0.21225967,110710.0,110700.0,1.96002284]
[1747898071739,0.20322707,110710.0,110700.0,1.95098958]
[1747898072350,0.21225967,110710.0,110700.0,2.35098958]
[1747898072577,0.20322723,110710.0,110700.0,1.95809477]
[1747898072787,0.26792723,110710.0,110700.0,1.96712819]
[1747898072989,0.26792723,110710.0,110700.0,1.94727877]
[1747898074505,0.18516211,110710.0,110700.0,1.94722344]
[1747898074709,0.00450996,110710.0,110700.0,2.21849119]
[1747898074945,0.20322633,110710.0,110700.0,2.21849119]
[1747898075148,0.00450996,110710.0,110700.0,2.24383116]
[1747898076178,0.00450996,110710.0,110700.0,2.21849119]
[1747898076378,0.20771402,110730.0,110720.0,0.19869899]
[1747898076646,0.20786691,110730.0,110720.0,4.40381791]
[1747898076975,0.19883618,110730.0,110720.0,4.41284913]
[1747898077199,0.20786691,110730.0,110720.0,4.81284937]
[1747898077400,0.2168978,110730.0,110720.0,4.80381799]
[1747898077664,0.2228978,110730.0,110720.0,4.7957867]
[1747898077839,0.2228978,110730.0,110720.0,4.8138497]
[1747898078074,0.22289788,110730.0,110720.0,4.80481824]
[1747898078285,0.20483618,110730.0,110720.0,4.78675499]
[1747898078419,0.21386699,110730.0,110720.0,4.52306031]
[1747898078622,0.21686699,110730.0,110720.0,4.53309193]
[1747898078822,0.20783618,110730.0,110720.0,4.54212315]
[1747898079025,0.22589788,110730.0,110720.0,4.53309185]
[1747898079222,0.18977241,110730.0,110720.0,4.52406031]
[1747898079534,0.01818313,110730.0,110720.0,4.86961776]
[1747898079742,0.00906774,110730.0,110720.0,4.86961776]
[1747898079937,0.01809798,110730.0,110720.0,4.86961776]
[1747898080139,0.00906774,110730.0,110720.0,4.86961776]
[1747898080307,0.00306774,110730.0,110720.0,4.86861776]
[1747898080844,0.00406774,110730.0,110720.0,4.86861776]
[1747898081221,0.00306774,110730.0,110720.0,4.86861776]
[1747898081436,0.23043399,110750.0,110730.0,0.54769753]
[1747898081654,0.20776333,110750.0,110740.0,1.84998377]
[1747898081860,0.2612344,110750.0,110740.0,1.53878677]
[1747898082120,0.2612344,110750.0,110740.0,0.99920877]
[1747898082485,0.2612344,110750.0,110740.0,1.39920877]
[1747898082690,0.2612344,110750.0,110740.0,1.30765996]
[1747898082825,0.2612344,110750.0,110740.0,0.91419796]
[1747898083048,0.2622344,110750.0,110740.0,0.91429677]
[1747898083908,0.2642344,110750.0,110740.0,0.91429677]
[1747898084777,0.25520522,110750.0,110740.0,0.90421677]
[1747898084977,0.25520522,110750.0,110740.0,0.629304]
[1747898085180,0.25520522,110750.0,110740.0,0.89299877]
[1747898085390,0.22440522,110750.0,110740.0,0.89299877]
[1747898086192,0.22440522,110750.0,110740.0,0.49299877]
[1747898086617,0.19270522,110750.0,110740.0,0.49299877]
[1747898086798,0.20173432,110750.0,110740.0,0.68263197]
[1747898086998,0.20173432,110750.0,110740.0,0.90202893]
[1747898087208,0.20173432,110750.0,110740.0,0.89299877]
[1747898087437,0.23193432,110750.0,110740.0,0.89299877]
[1747898087569,0.26243432,110750.0,110740.0,0.89299877]
[1747898089131,0.003,110750.0,110740.0,1.09166204]
[1747898089350,0.03911574,110750.0,110740.0,1.10972145]
[1747898089571,0.03911574,110750.0,110740.0,1.14252145]
[1747898089797,0.048145,110750.0,110740.0,1.10972145]
[1747898090002,0.22873263,110750.0,110740.0,1.10069187]
[1747898090319,0.21970378,110750.0,110740.0,1.10972162]
[1747898090511,0.21970378,110750.0,110740.0,1.1187508]
[1747898090886,0.03008754,110750.0,110740.0,1.1187508]
[1747898091192,0.03008754,110750.0,110740.0,1.1514508]
[1747898091419,0.01202869,110750.0,110740.0,1.5238508]
[1747898091885,0.003,110750.0,110740.0,1.5238508]
[1747898092086,0.003,110750.0,110740.0,1.8822908]
[1747898092577,0.05101436,110770.0,110760.0,0.19862708]
[1747898092903,0.00923983,110770.0,110760.0,4.09514257]
[1747898093109,0.00021277,110770.0,110760.0,4.91622813]
[1747898093239,0.00021277,110770.0,110760.0,5.31622813]
[1747898093872,0.00221277,110770.0,110760.0,5.31622813]
[1747898094074,0.00621277,110770.0,110760.0,5.31622813]
[1747898094907,0.01,110780.0,110770.0,0.61213645]
[1747898095084,0.01,110780.0,110770.0,4.47528922]
[1747898095499,0.20859057,110780.0,110770.0,4.47528938]
[1747898095735,0.20859057,110780.0,110770.0,4.85121652]
[1747898095956,0.21761706,110780.0,110770.0,4.85121652]
[1747898096141,0.21761706,110780.0,110770.0,4.85321652]
[1747898097124,0.21761706,110780.0,110770.0,4.84418938]
[1747898097304,0.02805257,110780.0,110770.0,4.85321652]
[1747898097579,0.01902616,110780.0,110770.0,4.85521652]
[1747898097796,0.20859057,110780.0,110770.0,4.85521652]
[1747898099572,0.20859057,110780.0,110770.0,4.84618938]
[1747898099934,0.20859057,110780.0,110770.0,4.85521652]
[1747898100075,0.01902616,110780.0,110770.0,4.85521652]
[1747898100288,0.01,110780.0,110770.0,4.97596208]
[1747898100750,0.01,110780.0,110770.0,4.70520208]
[1747898101023,0.01,110780.0,110770.0,5.33424208]
[1747898101830,0.19956432,110780.0,110770.0,5.1863747]
[1747898102026,0.19956432,110780.0,110770.0,5.17302922]
[1747898102027,0.01902632,110780.0,110770.0,5.17302922]
[1747898102216,0.01902632,110780.0,110770.0,4.54402922]
[1747898102356,0.01,110780.0,110770.0,5.17302922]
[1747898102553,0.02805257,110780.0,110770.0,5.20362922]
[1747898103215,0.02805257,110780.0,110770.0,5.21269482]
[1747898103417,0.02805248,110780.0,110770.0,5.21269482]
[1747898104066,0.04610554,110780.0,110770.0,5.21269482]
[1747898104278,0.27169122,110780.0,110770.0,3.7417636]
[1747898104495,0.27169122,110780.0,110770.0,3.99639277]
[1747898104695,0.05885273,110780.0,110770.0,4.20402947]
[1747898104926,0.01,110780.0,110770.0,4.21305661]
[1747898105141,0.03707922,110780.0,110770.0,4.21305661]
[1747898105388,0.01902616,110780.0,110770.0,4.21305661]
[1747898105603,0.02805257,110780.0,110770.0,4.24525661]
[1747898105802,0.03707914,110780.0,110770.0,4.24525661]
[1747898106011,0.03707914,110780.0,110770.0,4.02969261]
[1747898106236,0.25954395,110780.0,110770.0,3.98846547]
[1747898106413,0.22664395,110780.0,110770.0,4.05749261]
[1747898106985,0.02805273,110780.0,110770.0,4.05749261]
[1747898107170,0.03707938,110780.0,110770.0,4.05749261]
[1747898107415,0.02805257,110780.0,110770.0,3.65749261]
[1747898107941,0.03707914,110780.0,110770.0,3.65749261]
[1747898108345,0.22664387,110780.0,110770.0,3.63943825]
[1747898108577,0.22664387,110780.0,110770.0,3.65749269]
[1747898109167,0.21761714,110780.0,110770.0,3.65749269]
[1747898109372,0.22664387,110780.0,110770.0,3.65749269]
[1747898109551,0.03707914,110780.0,110770.0,3.65749269]
[1747898110802,0.03707906,110780.0,110770.0,3.65749269]
[1747898110936,0.03707906,110780.0,110770.0,3.92817269]
[1747898111143,0.01902616,110780.0,110770.0,3.92817269]
[1747898111342,0.01902616,110780.0,110770.0,3.95957269]
[1747898111539,0.01902616,110780.0,110770.0,3.99027269]
[1747898111540,0.01,110780.0,110770.0,3.99027269]
[1747898112159,0.01,110780.0,110770.0,4.07981825]
[1747898112364,0.01,110780.0,110770.0,3.80913825]
[1747898112577,0.2899892,110800.0,110790.0,0.26369477]
[1747898112775,0.28096418,110800.0,110790.0,2.34673885]
[1747898113034,0.37050974,110800.0,110790.0,1.43046577]
[1747898113196,0.0914247,110800.0,110790.0,1.62903939]
[1747898113414,0.0503,110800.0,110790.0,1.62903939]
[1747898113612,0.2578799,110800.0,110790.0,1.62903955]
[1747898113811,0.25988039,110800.0,110790.0,1.166771]
[1747898114027,0.29048039,110800.0,110790.0,1.43046577]
[1747898114778,0.28948039,110800.0,110790.0,1.43046577]
[1747898115371,0.28948039,110800.0,110790.0,1.77046577]
[1747898115574,0.28939527,110800.0,110790.0,1.77046577]
[1747898115977,0.28037041,110800.0,110790.0,1.77046577]
[1747898116396,0.27937041,110800.0,110790.0,1.77046577]
[1747898116606,0.27937025,110800.0,110790.0,1.77046577]
[1747898117560,0.27034539,110800.0,110790.0,1.73392477]
[1747898117768,0.27034539,110800.0,110790.0,1.71991277]
[1747898118083,0.27034539,110800.0,110790.0,1.67136677]
[1747898118301,0.27034539,110800.0,110790.0,1.58556877]
[1747898118505,0.25949122,110780.0,110770.0,0.06]
[1747898118636,0.20763597,110770.0,110760.0,0.46230903]
[1747898118843,0.53016813,110790.0,110780.0,0.34]
[1747898119040,0.53016813,110790.0,110780.0,3.71682877]
[1747898119225,0.00902543,110790.0,110780.0,3.91542015]
[1747898119431,0.20759856,110790.0,110780.0,3.91541999]
[1747898119646,0.20759839,110790.0,110780.0,3.91541999]
[1747898119874,0.20759831,110790.0,110780.0,4.2419735]
[1747898120080,0.21662423,110790.0,110780.0,4.2102735]
[1747898120295,0.20759831,110790.0,110780.0,4.21930007]
[1747898120490,0.21662415,110790.0,110780.0,4.22832648]
[1747898120693,0.20759831,110790.0,110780.0,4.23032656]
[1747898120930,0.21662415,110790.0,110780.0,4.2122735]
[1747898121089,0.22565015,110790.0,110780.0,4.23132672]
[1747898121294,0.22565015,110790.0,110780.0,4.2132735]
[1747898121494,0.22565015,110790.0,110780.0,4.23132664]
[1747898121495,0.19857264,110790.0,110780.0,4.23132664]
[1747898121704,0.01805094,110790.0,110780.0,4.24035296]
[1747898122167,0.01991488,110800.0,110790.0,0.24019896]
[1747898122400,0.01991488,110800.0,110790.0,4.2529225]
[1747898122611,0.00902388,110810.0,110800.0,0.53854193]
[1747898122878,0.2167378,110810.0,110800.0,4.20204045]
[1747898123023,0.2167378,110810.0,110800.0,4.17906563]
[1747898123208,0.1986902,110810.0,110800.0,3.98052354]
[1747898123617,0.20771465,110810.0,110800.0,3.98052354]
[1747898123823,0.20771465,110810.0,110800.0,4.04954881]
[1747898124019,0.20771384,110810.0,110800.0,4.27167924]
[1747898124221,0.19868963,110810.0,110800.0,4.27167932]
[1747898124401,0.19868963,110810.0,110800.0,4.28070426]
[1747898124645,0.19868963,110810.0,110800.0,4.28972912]
[1747898124878,0.00015275,110810.0,110800.0,4.6008339]
[1747898125010,0.00099,110820.0,110810.0,0.60023745]
[1747898125376,0.21654684,110830.0,110820.0,0.21979201]
[1747898125505,0.21654684,110830.0,110820.0,3.59662086]
[1747898125711,0.21654684,110830.0,110820.0,3.55437242]
[1747898125914,0.2075241,110830.0,110820.0,3.22038124]
[1747898126117,0.21654684,110830.0,110820.0,3.2294048]
[1747898126317,0.19850201,110830.0,110820.0,2.4915506]
[1747898126559,0.19850201,110830.0,110820.0,2.50057416]
[1747898126758,0.2435433,110840.0,110830.0,0.52045655]
[1747898126957,0.32925358,110840.0,110830.0,0.60369477]
[1747898127214,0.29715358,110840.0,110830.0,3.14648114]
[1747898127430,0.19848323,110840.0,110830.0,3.52615832]
[1747898127592,0.20750499,110840.0,110830.0,3.31520177]
[1747898127924,0.19848323,110840.0,110830.0,3.89565832]
[1747898128067,0.19848315,110840.0,110830.0,3.50468106]
[1747898128267,0.001,110840.0,110830.0,3.55322581]
[1747898128493,0.19948331,110840.0,110830.0,3.90468106]
[1747898128694,0.19948331,110840.0,110830.0,3.91370364]
[1747898128869,0.001,110840.0,110830.0,3.91370364]
[1747898129060,0.19948323,110840.0,110830.0,3.90468106]
[1747898129256,0.18144027,110840.0,110830.0,2.84563651]
[1747898129642,0.18144027,110840.0,110830.0,3.02609298]
[1747898129643,0.20850475,110840.0,110830.0,3.02609298]
[1747898129844,0.20950467,110840.0,110830.0,3.03511556]
[1747898130022,0.21852652,110840.0,110830.0,2.89661377]
[1747898130251,0.20950524,110840.0,110830.0,2.89661377]
[1747898130455,0.20048339,110840.0,110830.0,3.07707032]
[1747898130663,0.20048339,110840.0,110830.0,3.34991032]
[1747898130861,0.20048307,110840.0,110830.0,3.35893298]
[1747898131035,0.20048307,110840.0,110830.0,3.36795556]
[1747898131256,0.25233651,110880.0,110830.0,3.5852941]
[1747898131530,0.20799597,110850.0,110840.0,1.56542577]
[1747898131732,0.19897486,110850.0,110840.0,0.82118477]
[1747898132133,0.19897486,110850.0,110840.0,1.22118477]
[1747898132335,0.18995407,110850.0,110840.0,1.22118477]
[1747898132696,0.25135407,110850.0,110840.0,0.79821877]
[1747898133266,0.25135407,110850.0,110840.0,1.14021877]
[1747898133680,0.25135407,110850.0,110840.0,1.13821877]
[1747898133880,0.25135407,110850.0,110840.0,1.13921877]
[1747898134281,0.01855046,110850.0,110840.0,1.40291354]
[1747898134599,0.19897421,110850.0,110840.0,1.34672449]
[1747898134801,0.18995367,110850.0,110840.0,1.35574593]
[1747898135152,0.2170162,110850.0,110840.0,1.34672449]
[1747898135378,0.20799517,110850.0,110840.0,1.34672466]
[1747898135554,0.00050905,110850.0,110840.0,1.64181943]
[1747898135797,0.19897429,110850.0,110840.0,1.11442989]
[1747898136013,0.00050905,110850.0,110840.0,1.68344087]
[1747898136458,0.00050905,110850.0,110840.0,1.24559689]
[1747898136666,0.00050905,110850.0,110840.0,1.77298643]
[1747898138851,0.00050905,110850.0,110840.0,1.24559689]
[1747898139062,0.00050905,110850.0,110840.0,1.77298643]
[1747898140748,0.2079954,110850.0,110840.0,1.20321877]
[1747898140959,0.26397486,110850.0,110840.0,0.79921877]
[1747898141395,0.23157486,110850.0,110840.0,0.79921877]
[1747898141817,0.22255407,110850.0,110840.0,0.79921877]
[1747898141998,0.22255407,110850.0,110840.0,0.535524]
[1747898141999,0.25305407,110850.0,110840.0,0.535524]
[1747898142211,0.25305407,110850.0,110840.0,0.79921877]
[1747898142361,0.25305407,110850.0,110840.0,0.535524]
[1747898142589,0.25305407,110850.0,110840.0,0.91065377]
[1747898142799,0.24403304,110850.0,110840.0,0.66469477]
[1747898143344,0.24403304,110850.0,110840.0,0.85691977]
[1747898143550,0.24403304,110850.0,110840.0,0.66469477]
[1747898143750,0.24403304,110850.0,110840.0,0.66424589]
[1747898143953,0.34811945,110850.0,110840.0,0.40055112]
[1747898144169,0.61867945,110850.0,110840.0,0.40055112]
[1747898144529,0.61867945,110850.0,110840.0,0.001]
[1747898144730,0.18946212,110840.0,110830.0,0.32369477]
[1747898144944,0.18946212,110840.0,110830.0,1.83751577]
[1747898145203,0.01052968,110850.0,110830.0,2.06851691]
[1747898145346,0.19997454,110850.0,110840.0,3.37682877]
[1747898145557,0.00150905,110850.0,110840.0,3.61683409]
[1747898145756,0.00250905,110850.0,110840.0,4.22052886]
[1747898146089,0.00250905,110850.0,110840.0,4.52138886]
[1747898146282,0.00150905,110850.0,110840.0,4.52138886]
[1747898146504,0.19997454,110850.0,110840.0,3.68411804]
[1747898146709,0.19997446,110850.0,110840.0,3.94781281]
[1747898146873,0.19997446,110850.0,110840.0,3.95683466]
[1747898147081,0.19897446,110850.0,110840.0,3.96585634]
[1747898147390,0.19897446,110850.0,110840.0,4.22959119]
[1747898148064,0.19897446,110850.0,110840.0,3.95687474]
[1747898148267,0.20799549,110850.0,110840.0,3.95687483]
[1747898148421,0.20799549,110850.0,110840.0,3.92537483]
[1747898148647,0.18995358,110850.0,110840.0,4.07070166]
[1747898148831,0.20799508,110850.0,110840.0,4.32537483]
[1747898149031,0.22603722,110850.0,110840.0,3.854174]
[1747898149280,0.46543804,110850.0,110840.0,3.114174]
[1747898149595,0.46543804,110850.0,110840.0,0.00104]
[1747898149596,0.75049889,110850.0,110840.0,0.00104]
[1747898150165,0.70985428,110850.0,110840.0,0.00104]
[1747898151109,0.70985428,110850.0,110840.0,4e-05]
[1747898151458,0.71185428,110850.0,110840.0,4e-05]
[1747898151686,0.63968143,110850.0,110840.0,4e-05]
[1747898153200,0.36916143,110850.0,110840.0,4e-05]
[1747898153404,1.02728143,110850.0,110840.0,4e-05]
[1747898155786,1.02728143,110850.0,110840.0,3.113174]
[1747898155986,0.56108058,110850.0,110840.0,3.71686877]
[1747898156384,0.55205963,110850.0,110840.0,3.71686877]
[1747898156625,0.29052042,110850.0,110840.0,4.11686877]
[1747898156836,0.29954161,110850.0,110840.0,4.11686877]
[1747898157037,0.29052082,110850.0,110840.0,4.11686877]
[1747898157992,0.24052082,110850.0,110840.0,4.11686877]
[1747898159241,0.24052082,110850.0,110840.0,3.77686877]
[1747898159470,0.51108082,110850.0,110840.0,3.77686877]
[1747898159591,0.51108082,110850.0,110840.0,3.80786877]
[1747898159788,0.40349304,110850.0,110840.0,4.02923105]
[1747898160034,0.4125135,110850.0,110840.0,4.03825298]
[1747898160224,0.40349304,110850.0,110840.0,4.03825298]
[1747898160426,0.1419535,110850.0,110840.0,4.17976877]
[1747898160635,0.18242399,110850.0,110840.0,4.36923105]
[1747898160923,0.18242399,110850.0,110840.0,4.37825281]
[1747898161242,0.18242399,110850.0,110840.0,4.3782529]
[1747898161673,0.18242399,110850.0,110840.0,4.39629602]
[1747898161985,0.18242399,110850.0,110840.0,4.40531746]
[1747898162402,0.18242399,110850.0,110840.0,4.12357981]
[1747898162624,0.19144453,110850.0,110840.0,4.3782529]
[1747898163044,0.18242399,110850.0,110840.0,4.65999111]
[1747898163255,0.18242399,110850.0,110840.0,4.65096943]
[1747898163456,0.18242399,110850.0,110840.0,4.66901263]
[1747898163664,0.002,110850.0,110840.0,4.66901263]
[1747898165799,0.002,110850.0,110840.0,4.75855819]
[1747898166431,0.002,110850.0,110840.0,4.23116865]
[1747898166647,0.002,110850.0,110840.0,4.75855819]
[1747898166859,0.20842471,110880.0,110860.0,0.60144824]
[1747898167069,0.21759577,110880.0,110870.0,2.47230877]
[1747898167271,0.21759577,110880.0,110870.0,1.98123177]
[1747898167485,0.19054105,110880.0,110870.0,2.58868094]
[1747898167695,0.01015271,110880.0,110870.0,2.32498617]
[1747898167916,0.19052789,110880.0,110870.0,2.57966202]
[1747898168125,0.19052789,110880.0,110870.0,2.58868118]
[1747898168556,0.19152789,110880.0,110870.0,2.38123177]
[1747898168761,0.2105645,110880.0,110870.0,2.65175177]
[1747898169043,0.21056491,110880.0,110870.0,0.74]
[1747898169256,0.36181047,110880.0,110870.0,0.34]
[1747898169464,0.33051047,110880.0,110870.0,1.79516677]
[1747898169674,0.21056491,110880.0,110870.0,2.22334677]
[1747898169881,0.21056491,110880.0,110870.0,1.98780777]
[1747898170093,0.36291047,110880.0,110870.0,0.886002]
[1747898170339,0.36291047,110880.0,110870.0,1.14969677]
[1747898171384,0.30011047,110880.0,110870.0,1.14969677]
[1747898175090,0.19252789,110880.0,110870.0,1.21249677]
[1747898175297,0.19252789,110880.0,110870.0,1.58089677]
[1747898175502,0.22860128,110880.0,110870.0,1.58089677]
[1747898175825,0.22860185,110880.0,110870.0,1.54969677]
[1747898176245,0.21958318,110880.0,110870.0,1.54969677]
[1747898177095,0.22860185,110880.0,110870.0,1.54969677]
[1747898177302,0.22860233,110880.0,110870.0,1.54969677]
[1747898177489,0.21958358,110880.0,110870.0,1.54969677]
[1747898177716,0.2105645,110880.0,110870.0,1.58079677]
[1747898177908,0.21958309,110880.0,110870.0,1.58079677]
[1747898178274,0.21958358,110880.0,110870.0,1.58079677]
[1747898178484,0.21056515,110880.0,110870.0,1.54969677]
[1747898178720,0.27276515,110880.0,110870.0,1.54969677]
[1747898179676,0.19252789,110880.0,110870.0,1.58189677]
[1747898179880,0.20154591,110880.0,110870.0,1.61499677]
[1747898180091,0.01215271,110880.0,110870.0,2.05908298]
[1747898180292,0.19252789,110880.0,110870.0,2.34760171]
[1747898180516,0.19152789,110880.0,110870.0,2.36563979]
[1747898180692,0.01115271,110880.0,110870.0,2.36563979]
[1747898180922,0.19152789,110880.0,110870.0,2.36663979]
[1747898181126,0.01115271,110880.0,110870.0,2.36663979]
[1747898181339,0.01115271,110880.0,110870.0,2.36563979]
[1747898181759,0.19152789,110880.0,110870.0,2.36563979]
[1747898181969,0.01015271,110880.0,110870.0,2.36563979]
[1747898182374,0.01015271,110880.0,110870.0,2.36663979]
[1747898182779,0.01015271,110880.0,110870.0,2.36963979]